bitfinex/quotes_ETHUSD_20250420
["timestamp","ask_amount","ask_price","bid_price","bid_amount"]
[1745133306801,6.24921884,1600.2,1600.1,8.267]
[1745133309127,6.24883751,1600.3,1600.1,8.267]
[1745133309537,12.31861842,1600.4,1600.1,8.267]
[1745133309721,18.56734718,1600.4,1600.1,8.267]
[1745133310664,6.2488799,1600.3,1600.1,8.267]
[1745133311219,12.31861049,1600.4,1600.1,8.267]
[1745133311419,6.24896806,1600.3,1600.1,8.267]
[1745133312223,6.24921884,1600.2,1600.1,8.267]
[1745133313156,6.24908801,1600.3,1600.1,8.267]
[1745133313545,6.24921884,1600.2,1600.1,8.267]
[1745133313865,6.24921884,1600.2,1600.1,5.267]
[1745133314030,7.57808953,1600.2,1600.1,5.267]
[1745133316111,6.24921884,1600.2,1600.1,5.267]
[1745133316316,13.10400704,1600.5,1600.1,9.0572]
[1745133316493,6.24846267,1600.4,1600.1,10.36956802]
[1745133316817,13.10400704,1600.5,1600.1,10.36956802]
[1745133317003,12.31830704,1600.5,1600.1,10.36956802]
[1745133317519,12.31830704,1600.5,1600.1,9.11968606]
[1745133317721,6.24844615,1600.4,1600.1,9.11968606]
[1745133317917,6.24844615,1600.4,1600.1,9.0572]
[1745133318415,6.24844615,1600.4,1600.1,9.11968726]
[1745133318710,12.31830704,1600.5,1600.1,10.36957629]
[1745133319111,6.24844114,1600.4,1600.1,10.36957629]
[1745133319412,6.24844114,1600.4,1600.1,9.11968726]
[1745133320207,6.24844114,1600.4,1600.1,9.0572]
[1745133321011,6.24844114,1600.4,1600.1,9.11968733]
[1745133321605,6.24844114,1600.4,1600.1,9.0572]
[1745133321824,6.24844114,1600.4,1600.1,9.11968734]
[1745133322815,6.24844114,1600.4,1600.1,9.0572]
[1745133324219,6.24780845,1600.6,1600.3,3.0]
[1745133324420,12.49578164,1600.6,1600.3,3.0]
[1745133324606,6.24809186,1600.5,1600.3,3.0]
[1745133325113,7.49622565,1600.8,1600.4,2.04547861]
[1745133325114,13.74370263,1600.8,1600.4,2.04547861]
[1745133325289,6.2473315,1600.7,1600.6,3.0]
[1745133328221,7.49644293,1600.8,1600.6,3.0]
[1745133328720,6.24710572,1600.8,1600.6,3.0]
[1745133329822,12.31666514,1600.9,1600.6,3.0]
[1745133330028,12.31666514,1600.9,1600.6,3.7952]
[1745133330922,6.06999998,1600.9,1600.7,1.31188372]
[1745133331228,4.17522881,1601.1,1600.8,5.04454531]
[1745133331393,4.17522881,1601.1,1600.9,5.235]
[1745133332316,4.17522881,1601.1,1600.9,6.54672685]
[1745133332696,4.17522881,1601.1,1600.9,5.29745869]
[1745133332893,10.42102484,1601.1,1600.9,5.235]
[1745133333639,4.17522881,1601.1,1600.9,5.235]
[1745133334429,10.42125012,1601.1,1600.9,5.235]
[1745133334607,6.24609618,1601.0,1600.9,8.235]
[1745133334808,12.31515064,1601.3,1601.0,3.7976]
[1745133335035,12.31508728,1601.3,1601.0,3.7976]
[1745133335333,6.24546865,1601.2,1601.0,3.7976]
[1745133336032,6.24546865,1601.2,1601.0,4.26857244]
[1745133336424,6.24546865,1601.2,1601.0,4.33102513]
[1745133336629,6.24607088,1601.1,1600.9,5.235]
[1745133336806,6.24609618,1601.0,1600.9,5.235]
[1745133338433,6.24687656,1600.8,1600.6,0.7976]
[1745133338638,6.24687656,1600.8,1600.7,5.238]
[1745133339220,7.57712413,1600.8,1600.7,5.238]
[1745133339459,6.24818499,1600.5,1600.3,0.7673]
[1745133339627,6.24843789,1600.4,1600.3,0.7673]
[1745133339831,6.24828325,1600.5,1600.4,3.0]
[1745133341045,6.24804748,1600.5,1600.4,3.0]
[1745133342438,12.31782468,1600.6,1600.4,3.0]
[1745133342745,12.31781085,1600.6,1600.4,3.0]
[1745133342941,6.06999998,1600.6,1600.4,3.0]
[1745133343446,12.31770337,1600.6,1600.4,3.0]
[1745133344053,6.24770339,1600.6,1600.4,3.0]
[1745133346146,13.12169821,1600.8,1600.4,3.0]
[1745133346552,6.24734822,1600.7,1600.4,3.0]
[1745133346922,6.24803846,1600.6,1600.4,3.0]
[1745133347138,6.24804748,1600.5,1600.4,3.0]
[1745133351063,18.56507468,1600.7,1600.4,7.4685501]
[1745133351364,12.31747891,1600.7,1600.4,7.4685501]
[1745133351568,12.31747891,1600.7,1600.4,7.53102657]
[1745133352859,6.24770063,1600.6,1600.4,7.53102657]
[1745133353061,12.31747891,1600.7,1600.4,7.53102657]
[1745133353225,18.5650741,1600.7,1600.4,7.53102657]
[1745133353427,12.31747891,1600.7,1600.4,7.53102657]
[1745133353737,12.31753285,1600.7,1600.4,7.53102657]
[1745133354330,6.24768946,1600.6,1600.4,7.53102657]
[1745133354659,12.31753285,1600.7,1600.4,7.53102657]
[1745133354867,18.56510504,1600.7,1600.4,7.53102657]
[1745133355362,12.31753285,1600.7,1600.4,7.53102657]
[1745133355737,12.49509547,1600.7,1600.4,7.53102657]
[1745133355940,6.24753287,1600.7,1600.4,7.53102657]
[1745133357773,6.24765906,1600.6,1600.4,7.53102657]
[1745133359626,6.24753287,1600.7,1600.4,7.53102657]
[1745133359831,12.49509674,1600.7,1600.4,7.53102657]
[1745133360030,6.24771065,1600.6,1600.4,7.53102657]
[1745133360257,6.24771065,1600.6,1600.4,7.4685501]
[1745133360658,6.24771065,1600.6,1600.4,3.0]
[1745133361165,6.24804748,1600.5,1600.4,3.0]
[1745133362135,6.24804748,1600.5,1600.1,60.4721]
[1745133362335,6.24921884,1600.2,1600.1,53.533]
[1745133362534,6.24921884,1600.2,1600.1,61.772]
[1745133362735,0.8242,1600.6,1600.1,61.772]
[1745133362935,6.24868589,1600.4,1600.1,66.2988501]
[1745133363257,6.24804748,1600.5,1600.1,62.5811]
[1745133363467,6.95527223,1600.5,1600.1,62.5811]
[1745133363659,6.24921884,1600.2,1600.1,62.5811]
[1745133363864,6.24921884,1600.2,1600.1,61.772]
[1745133364763,7.07272891,1600.4,1600.1,65.96248065]
[1745133365155,7.07272891,1600.4,1600.1,62.24473055]
[1745133365156,6.24904854,1600.3,1600.1,62.24473055]
[1745133365656,6.24904854,1600.3,1600.2,3.0]
[1745133372868,6.24904854,1600.3,1600.1,59.24473055]
[1745133372869,6.24921884,1600.2,1600.1,58.772]
[1745133373060,6.24921884,1600.2,1600.1,61.772]
[1745133374184,7.03661884,1600.2,1600.1,58.772]
[1745133375689,7.03661884,1600.2,1600.1,5.239]
[1745133382020,7.02887968,1600.2,1600.1,5.239]
[1745133382200,9.09689157,1600.2,1600.1,5.239]
[1745133392073,6.24960939,1600.1,1600.0,5.244]
[1745133392405,12.31960937,1600.1,1600.0,5.244]
[1745133392607,12.31960937,1600.1,1600.0,6.0764]
[1745133396811,6.24939373,1600.2,1600.0,6.0764]
[1745133397809,12.49889378,1600.2,1600.0,6.0764]
[1745133398208,6.24939373,1600.2,1600.0,6.0764]
[1745133398411,12.49896855,1600.2,1600.0,6.0764]
[1745133398577,12.49892554,1600.2,1600.0,6.0764]
[1745133398783,6.24939373,1600.2,1600.0,6.0764]
[1745133398980,12.49892171,1600.2,1600.0,6.0764]
[1745133399910,6.24939373,1600.2,1600.0,6.0764]
[1745133400110,12.31903759,1600.3,1600.0,6.0764]
[1745133400407,6.06999998,1600.3,1600.1,3.0]
[1745133400613,12.3188382,1600.3,1600.1,3.0]
[1745133400982,12.40318582,1600.3,1599.8,1.27201109]
[1745133401297,6.25039064,1599.9,1599.7,0.8138]
[1745133401499,6.25082798,1599.8,1599.7,0.8138]
[1745133401716,6.25052669,1599.9,1599.7,0.8138]
[1745133402214,6.25078134,1599.8,1599.7,3.8138]
[1745133403590,6.25078134,1599.8,1599.7,0.8138]
[1745133403780,6.25117209,1599.7,1599.6,5.67855812]
[1745133403987,6.25117209,1599.7,1599.6,8.208]
[1745133407891,6.25156289,1599.6,1599.5,53.538]
[1745133408092,6.25156289,1599.6,1599.5,58.746]
[1745133408524,6.25156289,1599.6,1599.5,61.746]
[1745133414330,6.25156289,1599.6,1599.5,8.208]
[1745133415096,7.01686289,1599.6,1599.5,5.208]
[1745133415301,8.95066639,1599.6,1599.5,5.208]
[1745133416605,15.02066637,1599.6,1599.5,5.208]
[1745133416806,6.2535176,1599.1,1599.0,53.558]
[1745133417000,6.2535176,1599.1,1599.0,58.767]
[1745133417443,6.2535176,1599.1,1599.0,61.767]
[1745133418434,6.2532908,1599.2,1599.0,61.767]
[1745133418639,12.50673466,1599.2,1599.0,61.767]
[1745133418839,6.2532908,1599.2,1599.0,61.767]
[1745133419042,12.5067373,1599.2,1599.0,61.767]
[1745133419338,6.2535176,1599.1,1599.0,61.767]
[1745133420741,6.25339545,1599.2,1599.0,61.767]
[1745133420954,12.50684801,1599.2,1599.0,61.767]
[1745133421544,6.2535176,1599.1,1599.0,61.767]
[1745133422218,6.25339545,1599.2,1599.0,61.767]
[1745133422416,12.3228972,1599.3,1599.0,61.767]
[1745133423020,6.25325895,1599.2,1599.0,61.767]
[1745133423665,18.57595328,1599.3,1599.0,61.767]
[1745133423962,12.3228972,1599.3,1599.0,61.767]
[1745133424149,6.25314304,1599.2,1599.0,61.767]
[1745133425762,12.32296876,1599.3,1599.0,61.767]
[1745133426468,6.25312985,1599.2,1599.0,61.767]
[1745133427379,12.32296876,1599.3,1599.0,61.767]
[1745133427528,6.25313779,1599.2,1599.0,61.767]
[1745133430254,6.25313779,1599.2,1599.1,0.8283]
[1745133430903,6.06999998,1599.3,1599.1,0.8283]
[1745133431177,6.06999998,1599.3,1599.1,5.07898956]
[1745133431948,6.25252268,1599.4,1599.1,3.89082704]
[1745133432279,6.25252268,1599.4,1599.1,3.8283]
[1745133432466,6.25209869,1599.5,1599.2,0.8283]
[1745133433774,6.25273557,1599.3,1599.2,0.8283]
[1745133433947,6.25215593,1599.5,1599.2,0.8283]
[1745133434149,6.25215593,1599.5,1599.2,0.89082501]
[1745133436302,12.32177122,1599.6,1599.3,0.8283]
[1745133436480,12.32177122,1599.6,1599.5,3.0]
[1745133437376,6.06999998,1599.6,1599.5,3.8283]
[1745133437753,6.25099658,1599.8,1599.5,4.30438789]
[1745133438698,6.25099658,1599.8,1599.5,4.36689947]
[1745133439053,6.25099658,1599.8,1599.5,4.30438789]
[1745133439264,6.25099658,1599.8,1599.5,4.36689786]
[1745133439480,6.25099658,1599.8,1599.5,4.30438789]
[1745133439792,12.50214074,1599.8,1599.5,4.30438789]
[1745133440469,6.25121615,1599.7,1599.5,4.30438789]
[1745133442769,6.06999998,1599.9,1599.5,4.30438789]
[1745133442770,6.25156289,1599.6,1599.5,4.30438789]
[1745133443290,6.25141537,1599.7,1599.5,4.30438789]
[1745133443675,6.25182633,1599.6,1599.3,3.7729]
[1745133443882,6.25182633,1599.6,1599.4,5.28151712]
[1745133445081,6.25109791,1599.8,1599.5,0.7772]
[1745133445286,6.25130131,1599.7,1599.5,0.7772]
[1745133446158,6.25156289,1599.6,1599.5,0.7772]
[1745133446358,6.25156289,1599.6,1599.4,5.9962]
[1745133446699,6.25156289,1599.6,1599.4,6.05871595]
[1745133447286,6.25143658,1599.7,1599.4,6.05871595]
[1745133447791,12.50293052,1599.7,1599.4,6.05871595]
[1745133448360,6.25143658,1599.7,1599.4,6.05871595]
[1745133449058,6.25100703,1599.8,1599.4,10.96441099]
[1745133449776,12.50211555,1599.8,1599.4,10.96441099]
[1745133450700,6.25117703,1599.7,1599.4,10.96441099]
[1745133450895,6.25117703,1599.7,1599.4,5.9962]
[1745133451094,6.25160188,1599.6,1599.4,6.45376489]
[1745133451677,6.25195373,1599.5,1599.4,8.219]
[1745133451878,8.10930929,1599.5,1599.4,8.219]
[1745133452267,6.25195373,1599.5,1599.4,8.219]
[1745133454414,12.32177126,1599.6,1599.4,8.219]
[1745133454624,12.32177126,1599.6,1599.5,3.0]
[1745133455215,12.32177126,1599.6,1599.4,5.219]
[1745133455216,6.25195373,1599.5,1599.4,5.219]
[1745133456523,12.32177126,1599.6,1599.4,5.219]
[1745133457006,6.25195373,1599.5,1599.4,5.219]
[1745133459533,12.32177126,1599.6,1599.4,5.219]
[1745133460024,6.25195373,1599.5,1599.4,5.219]
[1745133460629,18.57369878,1599.6,1599.4,5.219]
[1745133461109,18.57366309,1599.6,1599.4,5.219]
[1745133461429,12.32177126,1599.6,1599.4,5.219]
[1745133461630,18.57367362,1599.6,1599.4,5.219]
[1745133461832,12.32177126,1599.6,1599.5,3.0]
[1745133465127,12.32177126,1599.6,1599.5,5.23]
[1745133465539,14.25539279,1599.6,1599.5,5.23]
[1745133469147,12.32177126,1599.6,1599.5,5.23]
[1745133470426,12.32177126,1599.6,1599.5,8.23]
[1745133470623,6.06999998,1599.6,1599.5,8.23]
[1745133472706,12.32156287,1599.6,1599.5,8.23]
[1745133473143,6.25156289,1599.6,1599.5,8.23]
[1745133475913,7.50185358,1599.6,1599.5,8.23]
[1745133477747,6.25312656,1599.2,1599.1,0.8068]
[1745133477906,6.25312656,1599.2,1599.1,5.23]
[1745133478110,6.25312656,1599.2,1599.1,8.23]
[1745133483954,6.25312656,1599.2,1599.1,5.23]
[1745133486355,6.2535176,1599.1,1599.0,53.558]
[1745133486657,12.32351758,1599.1,1599.0,58.789]
[1745133488826,12.32351758,1599.1,1599.0,53.558]
[1745133494078,6.06999998,1599.1,1599.0,56.558]
[1745133494252,6.06999998,1599.1,1599.0,3.0]
[1745133495767,6.06999998,1599.1,1599.0,3.8188]
[1745133496570,0.8103,1599.5,1599.1,4.25069212]
[1745133496571,6.25259596,1599.4,1599.1,4.25069212]
[1745133496776,6.25259596,1599.4,1599.1,5.06949212]
[1745133497149,12.32215988,1599.5,1599.1,6.38267434]
[1745133497355,6.2521599,1599.5,1599.3,3.0]
[1745133497556,6.2521599,1599.5,1599.4,5.222]
[1745133497869,12.32178048,1599.6,1599.4,8.222]
[1745133498438,18.57367427,1599.6,1599.4,8.222]
[1745133498638,6.06999998,1599.6,1599.4,9.0408]
[1745133498970,6.25195373,1599.5,1599.4,9.0408]
[1745133500138,6.25195373,1599.5,1599.4,8.222]
[1745133510581,8.19254564,1599.5,1599.4,8.222]
[1745133510979,9.02344564,1599.5,1599.4,8.222]
[1745133511549,6.2532885,1599.2,1599.1,3.0]
[1745133511785,6.2532885,1599.2,1599.1,8.221]
[1745133513554,6.2532885,1599.2,1599.1,5.221]
[1745133513777,6.2532885,1599.2,1599.1,8.221]
[1745133514282,6.2532885,1599.2,1599.1,5.221]
[1745133514486,7.58699277,1599.2,1599.1,5.221]
[1745133514850,6.2532885,1599.2,1599.1,5.221]
[1745133519079,12.50589314,1599.3,1599.1,5.221]
[1745133519688,6.25285415,1599.3,1599.1,5.221]
[1745133519884,12.50590805,1599.3,1599.1,5.221]
[1745133520082,6.25312656,1599.2,1599.1,5.221]
[1745133521064,6.25285415,1599.3,1599.1,5.221]
[1745133521294,12.50590143,1599.3,1599.1,5.221]
[1745133521496,6.25285415,1599.3,1599.1,5.221]
[1745133522504,12.50589254,1599.3,1599.1,5.221]
[1745133523178,6.25312656,1599.2,1599.1,5.221]
[1745133528275,8.33752463,1599.2,1599.1,5.221]
[1745133528472,14.40752461,1599.2,1599.1,5.221]
[1745133538621,6.25460306,1598.9,1598.8,8.211]
[1745133539211,6.25460306,1598.9,1598.7,0.00845329]
[1745133539212,6.25469101,1598.8,1598.7,0.00845329]
[1745133539517,6.25469101,1598.8,1598.7,5.21945329]
[1745133539813,8.28392042,1598.8,1598.7,5.21945329]
[1745133540021,14.3539204,1598.8,1598.7,5.21945329]
[1745133542219,14.3539204,1598.8,1598.7,0.00845329]
[1745133544312,14.3933204,1598.8,1598.7,0.00845329]
[1745133544822,6.25547353,1598.6,1598.5,5.211]
[1745133548137,6.25547353,1598.6,1598.3,3.7516]
[1745133548138,6.25703916,1598.2,1598.1,0.8516]
[1745133548429,6.25684965,1598.3,1598.2,3.0]
[1745133549409,6.25703916,1598.2,1598.1,5.312]
[1745133549610,6.25703916,1598.2,1598.1,0.1]
[1745133549813,8.32252804,1598.2,1598.1,0.1]
[1745133550202,6.573,1597.9,1596.8,5.64571761]
[1745133550402,6.573,1597.9,1596.0,3.18838049]
[1745133550403,6.26252505,1596.8,1596.0,0.47528676]
[1745133550604,6.4676277,1595.5,1595.3,18.07355264]
[1745133550849,6.4676277,1595.5,1594.1,20.95288675]
[1745133550850,6.26959247,1595.0,1594.1,20.95288675]
[1745133551002,3.0,1593.5,1592.2,30.18352192]
[1745133551207,3.72305274,1592.3,1590.5,3.12218855]
[1745133551419,1.2,1593.0,1589.2,23.13381744]
[1745133551420,6.28953618,1590.0,1589.2,23.13381744]
[1745133551711,0.29473064,1592.5,1589.2,23.13381744]
[1745133551712,0.70755923,1589.9,1589.2,19.11869468]
[1745133551911,0.70755923,1589.9,1587.1,3.2028264]
[1745133551912,11.4734284,1588.0,1587.1,3.2028264]
[1745133552214,6.30040322,1587.2,1587.1,0.1]
[1745133552530,11.6734284,1588.0,1587.4,0.98540326]
[1745133552531,0.19999992,1588.0,1587.4,0.98540326]
[1745133552838,0.19999992,1588.0,1586.6,0.35994104]
[1745133552839,0.46109622,1588.0,1583.9,53.688]
[1745133553037,0.2,1587.8,1584.8,1.887772]
[1745133553233,3.14371071,1587.7,1584.9,0.2]
[1745133553413,3.15934673,1589.6,1585.7,0.2]
[1745133553604,3.15877076,1588.0,1585.8,54.44733917]
[1745133553812,3.15877076,1588.0,1584.8,0.45888507]
[1745133553813,0.2,1588.0,1586.1,1.26092903]
[1745133554018,0.2,1588.0,1586.2,53.688]
[1745133554214,0.0356489,1587.2,1585.0,53.688]
[1745133554414,0.7756,1587.8,1586.3,1.26071863]
[1745133554617,0.0356489,1588.6,1586.6,0.1643511]
[1745133554905,0.0356489,1589.1,1587.5,1.25977452]
[1745133555109,6.84250513,1589.7,1585.1,5.3688]
[1745133555110,0.1601,1588.0,1585.1,5.3688]
[1745133555313,0.5517429,1589.7,1585.2,0.11535272]
[1745133555314,0.0356489,1585.3,1585.2,0.11535272]
[1745133555634,0.3,1586.4,1585.3,0.88960207]
[1745133555843,0.1,1586.4,1585.3,0.8052]
[1745133556006,0.11414196,1586.3,1584.3,3.12582212]
[1745133556208,0.1,1586.4,1584.7,0.73572691]
[1745133556451,0.11414196,1586.3,1584.9,0.2]
[1745133556748,6.29455817,1588.7,1585.7,0.8052]
[1745133556909,6.29681894,1588.2,1586.4,5.67320327]
[1745133557112,6.39567411,1588.4,1587.0,5.67093697]
[1745133557113,28.62983999,1587.9,1587.0,5.67093697]
[1745133557343,28.62983999,1587.9,1587.7,5.66852062]
[1745133557507,0.1,1588.4,1587.7,5.66852062]
[1745133557508,0.1,1588.4,1587.8,59.44307784]
[1745133557708,0.31763239,1591.3,1587.9,0.8052]
[1745133557907,0.32794054,1590.1,1588.4,5.66603765]
[1745133558107,0.32251138,1590.9,1589.3,5.66287044]
[1745133558326,6.28542071,1591.0,1589.3,55.19748704]
[1745133558541,1e-08,1589.4,1589.3,60.86035748]
[1745133558741,0.42633635,1591.4,1589.4,5.66251415]
[1745133558946,0.1,1591.4,1590.3,5.65930956]
[1745133559148,0.1,1591.4,1590.3,53.826]
[1745133559335,6.28417017,1591.3,1588.9,53.826]
[1745133559513,0.07049107,1591.4,1589.0,5.3826]
[1745133559712,9.58890089,1589.0,1588.9,53.826]
[1745133560139,9.58890089,1589.0,1588.9,53.8252]
[1745133560524,9.58890089,1589.0,1588.2,53.826]
[1745133561125,6.1064156,1589.0,1588.2,53.826]
[1745133561360,6.1064156,1589.0,1588.2,5.3826]
[1745133561557,6.1064156,1589.0,1588.7,5.6646548]
[1745133561849,10.6862273,1589.3,1589.2,5.66322678]
[1745133562053,10.6862273,1589.3,1589.2,59.73635163]
[1745133562277,8.39632145,1589.5,1589.4,5.66251415]
[1745133562457,8.39632145,1589.5,1589.2,54.07312485]
[1745133562858,0.7756,1591.5,1589.3,5.66251539]
[1745133563158,9.49021496,1590.1,1589.4,0.21842977]
[1745133563447,9.49021496,1590.1,1589.6,5.66156681]
[1745133563655,9.49021496,1590.1,1590.0,5.66037735]
[1745133563851,9.49021496,1590.1,1589.7,0.56615668]
[1745133564027,9.49021496,1590.1,1589.8,0.19900247]
[1745133564238,9.49021496,1590.1,1589.8,5.66108944]
[1745133564435,9.49021496,1590.1,1590.0,5.66037735]
[1745133564633,9.49021496,1590.1,1590.0,5.85879511]
[1745133565053,16.70091525,1591.2,1590.0,5.85879511]
[1745133565054,11.8902371,1590.7,1590.0,0.19841776]
[1745133565219,11.8902371,1590.7,1590.1,53.87]
[1745133565422,0.00927021,1590.6,1590.2,0.18129838]
[1745133565652,0.00927021,1590.6,1590.3,5.65930956]
[1745133565848,0.00927021,1590.6,1590.4,0.18065904]
[1745133566239,4.91779419,1590.5,1590.2,14.06464641]
[1745133566457,0.00927021,1590.4,1590.1,53.35269144]
[1745133566753,0.00927021,1590.4,1590.2,0.16616418]
[1745133567262,0.00927021,1590.4,1590.3,0.16094748]
[1745133567557,0.00927021,1590.4,1588.8,0.7557]
[1745133567755,0.00927021,1590.4,1590.3,0.14610294]
[1745133568052,0.00927021,1590.4,1590.3,0.14116844]
[1745133568254,0.00927021,1590.4,1590.3,6.38053743]
[1745133568443,0.00927021,1590.4,1590.3,0.14116844]
[1745133568645,0.00927021,1590.4,1590.3,8.800478]
[1745133568958,4.02400525,1590.4,1590.3,8.800478]
[1745133569327,4.02400525,1590.4,1590.1,5.10261952]
[1745133569536,4.02400525,1590.4,1590.2,5.65948296]
[1745133569855,4.02400525,1590.4,1590.3,5.65930956]
[1745133570057,4.91779419,1590.5,1590.4,6.20895372]
[1745133570261,5.29872101,1591.4,1590.8,5.6575308]
[1745133570451,5.29872101,1591.4,1591.2,5.65589063]
[1745133570645,5.29872101,1591.4,1591.3,5.78218251]
[1745133571033,5.29872101,1591.4,1591.3,8.78218251]
[1745133571234,5.29872101,1591.4,1591.3,9.33218251]
[1745133571534,1e-08,1591.8,1591.3,0.12642936]
[1745133571835,1e-08,1591.8,1591.5,5.65477121]
[1745133572037,1e-08,1591.8,1591.6,0.12604791]
[1745133572236,1e-08,1591.8,1591.2,0.7505]
[1745133572533,1e-08,1591.8,1591.7,5.65433184]
[1745133572945,0.1,1592.4,1591.7,0.12586593]
[1745133573145,0.1,1592.4,1591.8,59.52378512]
[1745133573336,0.1,1592.4,1591.9,5.65359168]
[1745133573534,0.1,1592.4,1591.9,5.77876451]
[1745133573739,0.1,1592.4,1591.9,0.12517283]
[1745133573965,0.1,1592.4,1592.0,5.55323819]
[1745133574463,0.1,1592.4,1592.1,0.12458963]
[1745133575071,0.1,1592.4,1592.0,5.65310601]
[1745133575439,0.1,1592.4,1591.9,3.0]
[1745133575649,0.1,1592.4,1592.1,5.65284901]
[1745133576036,3.02786793,1592.3,1592.2,5.02449441]
[1745133576240,3.02786793,1592.3,1591.9,5.02529857]
[1745133576449,3.02786793,1592.3,1591.8,53.87]
[1745133577138,3.02786793,1592.3,1592.0,5.02492105]
[1745133577344,3.02786793,1592.3,1592.0,5.02508471]
[1745133577845,3.02786793,1592.3,1591.9,3.0]
[1745133578150,3.02786793,1592.2,1591.9,5.02530355]
[1745133578351,3.02786793,1592.2,1591.8,58.89565653]
[1745133578352,3.02786793,1592.2,1591.8,53.87]
[1745133579076,3.02786793,1592.2,1592.1,5.02480999]
[1745133579259,3.02786793,1592.2,1591.8,58.89557509]
[1745133579452,3.02786793,1592.2,1591.8,53.8692]
[1745133579654,6.02786793,1592.2,1591.8,53.8692]
[1745133580046,6.02786793,1592.2,1591.2,0.7505]
[1745133580254,6.2812492,1592.1,1591.2,5.77799784]
[1745133580447,10.67641644,1592.0,1591.4,5.02681402]
[1745133580648,10.67641644,1592.0,1591.2,5.60304298]
[1745133580848,16.95787427,1592.0,1591.2,5.60304298]
[1745133581043,10.67641644,1592.0,1591.2,5.60304298]
[1745133581255,10.67641644,1592.0,1591.1,53.836]
[1745133581679,10.67641644,1592.0,1591.3,5.02711179]
[1745133582084,10.67641644,1592.0,1591.2,5.02758865]
[1745133582245,10.67641644,1592.0,1591.3,5.02717686]
[1745133582454,10.67641644,1591.5,1591.4,8.57702023]
[1745133582749,10.67641644,1591.5,1591.3,5.02717686]
[1745133583373,24.27001631,1592.0,1591.9,5.02544129]
[1745133584375,11.8902371,1592.0,1591.9,5.02544129]
[1745133584574,11.8902371,1592.0,1591.7,5.50199217]
[1745133584763,11.8902371,1592.0,1591.9,5.02544129]
[1745133585075,11.8902371,1592.0,1591.9,8.02544129]
[1745133586080,11.8902371,1592.0,1591.4,0.7592]
[1745133586387,11.8902371,1592.0,1591.9,4.39726113]
[1745133586591,11.8902371,1592.0,1591.6,3.55]
[1745133586592,24.43056114,1592.0,1591.6,3.55]
[1745133586792,24.43056114,1592.0,1591.9,7.39726113]
[1745133587891,19.7009135,1592.0,1591.9,7.39726113]
[1745133588052,19.7009135,1592.0,1591.8,4.39727446]
[1745133588259,19.7009135,1592.0,1591.9,4.39726113]
[1745133588788,19.13473094,1592.0,1591.9,4.39726113]
[1745133589604,19.13473094,1592.0,1591.7,4.39781365]
[1745133589831,19.13473094,1592.0,1591.9,4.39726113]
[1745133590119,19.13473094,1592.0,1591.9,7.39726113]
[1745133591008,19.13473094,1592.0,1591.9,4.39726113]
[1745133591377,19.13473094,1592.0,1591.7,4.39769603]
[1745133592090,19.13473094,1592.0,1591.9,4.39726113]
[1745133592278,19.13473094,1592.0,1591.9,58.21826113]
[1745133592475,27.4817463,1592.0,1591.9,53.41971347]
[1745133592672,27.4817463,1592.0,1591.9,57.8169746]
[1745133593001,27.4817463,1592.0,1591.9,60.8169746]
[1745133593574,40.09889305,1592.0,1591.9,57.8169746]
[1745133593776,40.09889305,1592.0,1591.9,58.30399073]
[1745133595797,40.09889305,1592.0,1591.9,51.95387626]
[1745133596203,24.88907404,1592.0,1591.9,54.08768301]
[1745133597453,0.1,1592.4,1592.3,4.3961565]
[1745133597651,0.1,1592.4,1592.3,8.00894967]
[1745133597810,0.34348339,1592.9,1592.8,4.39477649]
[1745133598005,0.34348339,1592.9,1592.8,7.39477649]
[1745133598238,50.53543091,1592.9,1592.3,7.94611328]
[1745133598543,50.19194752,1592.9,1592.7,4.39495401]
[1745133598709,50.19194752,1592.9,1592.8,4.39477649]
[1745133599107,50.19194752,1592.9,1592.8,7.85395536]
[1745133599716,50.19194752,1592.9,1592.8,7.39477649]
[1745133600045,50.19194752,1592.9,1592.8,11.4620818]
[1745133600609,19.2762672,1592.9,1592.8,4.06730531]
[1745133600803,19.2762672,1592.9,1592.7,53.811]
[1745133601056,6.27884658,1592.7,1591.9,62.26638443]
[1745133601351,0.07833398,1592.6,1591.9,58.33074174]
[1745133601522,0.07833398,1592.8,1592.1,4.39648737]
[1745133601709,0.57401284,1592.7,1591.9,57.86930531]
[1745133602046,0.07833398,1592.6,1592.1,4.39663574]
[1745133602410,0.07833398,1592.6,1592.2,4.39619747]
[1745133602620,0.57401284,1592.7,1592.2,4.39619747]
[1745133602621,0.57401284,1592.7,1592.4,4.39576402]
[1745133602845,0.65234682,1592.7,1592.4,4.01982075]
[1745133603151,0.07833398,1592.7,1591.6,4.06730531]
[1745133603437,6.27944976,1592.5,1591.5,4.39836632]
[1745133603644,6.35817074,1592.4,1591.6,4.39794412]
[1745133603849,0.7537,1592.3,1591.7,4.39768008]
[1745133604049,0.8242,1592.1,1591.6,4.39789379]
[1745133604351,6.28278955,1591.7,1590.9,4.39989058]
[1745133604551,6.28516073,1591.1,1590.5,57.87030531]
[1745133604751,0.8242,1590.9,1590.5,53.803]
[1745133604973,0.8242,1590.9,1590.5,57.87030531]
[1745133605135,0.07833398,1590.8,1590.5,57.87030531]
[1745133605461,0.07833398,1590.8,1590.6,4.40066176]
[1745133605665,0.07833398,1590.8,1590.6,3.77197787]
[1745133605950,0.8242,1590.9,1590.8,3.7716872]
[1745133606267,0.8242,1590.9,1590.5,51.51728275]
[1745133606450,0.8242,1590.7,1590.5,47.44997744]
[1745133606624,0.07833398,1590.6,1590.5,47.44997744]
[1745133606824,0.8242,1590.7,1590.5,47.44997744]
[1745133607025,0.8242,1590.5,1590.2,4.06730531]
[1745133607231,6.28498704,1591.1,1590.1,0.1]
[1745133607232,0.8242,1590.3,1590.1,0.1]
[1745133607542,0.90253398,1590.2,1590.1,0.1]
[1745133607951,7.19105114,1590.2,1590.1,0.1]
[1745133608171,7.19105114,1590.2,1589.2,3.7754129]
[1745133608172,0.8242,1590.0,1589.2,3.7754129]
[1745133608350,0.8242,1589.8,1589.1,60.0779846]
[1745133608663,0.07833398,1589.7,1589.4,3.77489748]
[1745133608866,0.8242,1589.5,1589.1,0.1]
[1745133609054,0.07833398,1589.4,1589.1,0.1]
[1745133609965,0.07833398,1589.4,1588.9,3.77601746]
[1745133610468,0.7629,1588.7,1588.1,0.1]
[1745133610768,0.7629,1588.7,1588.2,0.11741308]